Cogmind - Beta 14 @@@ ROGUE MODE // 2024.12.22 @ 14:11:50 Player: buwwet Result: Self-destructed Performance ------------- Evolutions (2) 1000 Regions Visited (8) 1600 Robots Destroyed (113) 565 Value Destroyed (3909) 3909 Prototype IDs (4) 80 Alien Tech Used (0) 0 Bonus (1455) 1455 TOTAL SCORE: 8609 Bonus ------- High Alert Combat Kills 332 Follower Combat Kills 123 Entered Garrisons 200 Used RIF Installer 500 Aligned with FarCom 300 Cogmind --------- Core Integrity 289/550 Matter 38/300 Energy 160/160 System Corruption 0% Temperature Cool (0) Movement Treading (160) Location -8/Materials Parts ------- > --- POWER (1) -------- Light Nuclear Core > --- PROPULSION (3) --- Light Treads Light Treads Light Treads > --- UTILITY (4) ------ Improved Heat Sink Large Storage Unit Hardened Light Armor Plating Improved Light Armor Plating > --- WEAPON (3) ------- (None) > --- INVENTORY (15) --- Light Nuclear Core Light Treads Wheel Trap Scanner Light Armor Plating Hacking Suite Relay Coupler [NC] (26) Relay Coupler [NC] (22) Relay Coupler [Swarmer] (29) Relay Coupler [Grunt] (28) Relay Coupler [Grunt] (27) Hammer Peak State ------------ > --- POWER ------------ Light Nuclear Core > --- PROPULSION ------- Light Treads Light Treads Improved Treads > --- UTILITY ---------- Improved Heat Sink Large Storage Unit Hardened Medium Armor Plating Hardened Medium Armor Plating > --- WEAPON ----------- Advanced Beam Rifle Heavy Assault Rifle Minigun > --- INVENTORY -------- Light Nuclear Core Light Nuclear Core Titanium Leg Wheel Improved Heat Sink Improved Heat Sink Improved Light Armor Plating Hacking Suite Hacking Suite Particle Cannon Particle Cannon Guided Plasma Cannon Improved Grenade Launcher Datajack Mining Claw [Rating: 30] Favorites ----------- Power Light Nuclear Core Engine Cooled Ion Engine Power Core Light Nuclear Core Propulsion Light Treads Treads Light Treads Leg Aluminum Leg Wheel Wheel Hover Unit Aerolev Unit Utility Large Storage Unit Device Heat Sink Storage Large Storage Unit Processor Visual Processing Unit Hackware Hacking Suite Protection Hardened Medium Armor Plating Weapon Particle Cannon Energy Gun Particle Gun Energy Cannon Particle Cannon Ballistic Gun Heavy Assault Rifle Launcher Improved Grenade Launcher Slashing Weapon Mining Claw Build | -11 -10 -9 -9 -9 -8 -8 -8 -8 ------- Run | Yrd Mat Mat Min Exi Min Mat Gar Mat Slots Evolved 4 | . . 2 . . . 2 . . Power . | . . . . . . . . . Propulsion 1 | . . . . . . 1 . . Utility 2 | . . 2 . . . . . . Weapon 1 | . . . . . . 1 . . Parts Attached 96 | 7 12 19 4 3 3 11 19 18 Power 8 | 1 1 1 . . 1 1 3 . Engine 3 | 1 1 1 . . . . . . Core 5 | . . . . . 1 1 3 . Reactor . | . . . . . . . . . Propulsion 27 | 2 5 6 1 . . 2 4 7 Treads 20 | 2 2 5 1 . . 2 3 5 Leg 2 | . 1 1 . . . . . . Wheel 3 | . 2 . . . . . 1 . Hover 2 | . . . . . . . . 2 Flight . | . . . . . . . . . Utility 27 | 2 2 7 3 . 1 4 4 4 Device 14 | 1 1 4 3 . 1 1 2 1 Storage 2 | 1 1 . . . . . . . Processor 1 | . . 1 . . . . . . Hackware 2 | . . . . . . 1 . 1 Protection 8 | . . 2 . . . 2 2 2 Artifact . | . . . . . . . . . Weapon 34 | 2 4 5 . 3 1 4 8 7 Energy Gun 6 | 1 3 . . . 1 1 . . Energy Cannon 6 | . . 1 . 2 . 2 1 . Ballistic Gun 14 | 1 1 3 . 1 . 1 3 4 Ballistic Cannon . | . . . . . . . . . Launcher 5 | . . . . . . . 3 2 Special Weapon . | . . . . . . . . . Impact Weapon . | . . . . . . . . . Slashing Weapon 3 | . . 1 . . . . 1 1 Piercing Weapon . | . . . . . . . . . Special Melee Weapon . | . . . . . . . . . Unidentified Prototypes 4 | . . 1 . 1 . 1 . 1 Parts Lost 21 | . 5 3 . . 1 3 4 5 Power 2 | . . . . . . 1 1 . Propulsion 7 | . 2 1 . . . 1 2 1 Utility 5 | . 1 2 . . 1 . 1 . Weapon 7 | . 2 . . . . 1 . 4 Highest Loss Streak 5 | . 2 2 . . 1 1 2 5 To Critical Strikes . | . . . . . . . . . Average Slot Usage (%) 99 | . 99 99 96 100 100 99 98 99 Engine 5 | . 14 11 11 11 3 . . . Core 4 | . . . . . 7 8 9 9 Treads 23 | . 22 21 22 22 22 26 20 27 Wheel 1 | . 4 . . . . . 4 . Device 17 | . 13 19 29 33 33 16 9 9 Storage 10 | . 14 11 11 11 11 9 9 9 Processor 1 | . . 5 . . . . . . Hackware 2 | . . . . . . 5 1 8 Protection 6 | . . 7 . . . 5 16 9 Energy Gun 7 | . 13 5 . . 7 11 9 4 Energy Cannon 7 | . . 5 11 11 11 12 5 8 Ballistic Gun 9 | . 14 11 11 10 3 2 9 12 Peak Build Rating 30 | 7 9 17 17 23 18 29 30 29 Average Rating 19 | 4 8 14 15 17 17 24 28 26 On Entrance 15 | . 7 9 14 17 18 17 29 27 Naked Turns . | . . . . . . . . . Heaviest Build 51 | 13 31 40 39 39 39 44 51 46 Greatest Support 63 | 40 40 40 43 43 43 63 63 60 Greatest Overweight (x) 4 | . 3 3 . . . . 4 1 Average Overweight (x) . | . 1 . . . . . 1 . Largest Inventory Capacity 15 | 8 15 15 15 15 15 15 15 15 Average Capacity 14 | 6 11 15 15 15 15 15 15 15 Most Carried 15 | 6 11 15 15 15 15 15 15 15 Average Carried 13 | 4 8 14 14 14 14 13 14 14 Final Capacity 15 | 8 15 15 15 15 15 15 15 15 Final Carried 15 | 6 11 14 15 15 15 15 15 12 Class Distribution -------------------- 38% | Scavenger-Mutant 33% | Scavenger-Skirmisher 13% | Mutant 13% | Scavenger-Tank Dominant Class ---------------- Mutant | -10/Materials Scavenger-Mutant | -9/Materials Scavenger-Mutant | -9/Mines Scavenger-Mutant | -9/Exiles Scavenger-Skirmisher | -8/Mines Scavenger-Skirmisher | -8/Materials Scavenger-Tank | -8/Garrison Scavenger-Skirmisher | -8/Materials Resources | -11 -10 -9 -9 -9 -8 -8 -8 -8 ----------- Run | Yrd Mat Mat Min Exi Min Mat Gar Mat Matter Collected 1830 | 238 339 415 57 . 86 120 402 173 Remotely . | . . . . . . . . . Salvage Created 3994 | 25 740 1126 11 . 190 326 719 857 Parts 241 | 3 50 77 . . 9 19 42 41 Haulers Intercepted 6 | . 1 3 . . . 1 . 1 Recyclers Shooed 2 | . 2 . . . . . . . Parts Field Recycled . | . . . . . . . . . Retrieved Matter . | . . . . . . . . . Parts Self-Destructed . | . . . . . . . . . Prevented . | . . . . . . . . . Kills | -11 -10 -9 -9 -9 -8 -8 -8 -8 ------- Run | Yrd Mat Mat Min Exi Min Mat Gar Mat Combat Hostiles Destroyed 86 | . 13 25 1 . 5 8 20 14 Guns 47 | . 13 16 . . 2 2 9 5 Cannons 23 | . . 9 1 . 2 5 2 4 AOE 13 | . . . . . . . 8 5 Classes Destroyed 14 | 1 7 2 1 . 1 . 2 . Worker 4 | . 1 . . . . . . 3 Tunneler 1 | 1 . . . . . . . . Hauler 6 | . 1 3 . . . 1 . 1 Recycler 5 | . 2 2 . . . . . 1 Operator 4 | . 1 2 . . . . . 1 Watcher 8 | . 3 3 . . . . . 2 Swarmer 21 | . 3 12 . . 2 3 1 . Cutter 2 | . . . . . . . 2 . Grunt 45 | . 10 7 . . 2 4 14 8 Brawler 4 | . . 1 . . . 1 . 2 Duelist 2 | . . . . . 1 . . 1 Sentry 10 | . . 5 . . . . 2 3 Hunter 1 | . . . . . . . 1 . Assembled 1 | . . . 1 . . . . . Best Kill Streak 10 | 1 3 8 1 . 3 3 3 10 Combat Bots Only 7 | . 3 7 1 . 3 3 3 6 Max Kills in Single Turn 3 | 1 1 2 1 . 1 1 3 3 Gunslinging . | . . . . . . . . . Exploded 3 | . . . . . . . 3 2 Melee . | . . . . . . . . . Uniques/NPCs Destroyed . | . . . . . . . . . Combat | -11 -10 -9 -9 -9 -8 -8 -8 -8 -------- Run | Yrd Mat Mat Min Exi Min Mat Gar Mat Hostile Shots Fired 455 | . 108 114 . . 41 30 68 94 Missed 127 | . 32 32 . . 8 7 19 29 Damage Taken 4766 | . 774 1048 36 . 405 508 780 1215 Core 670 | . 151 197 18 . 43 84 44 133 Absorbed by Shields 54 | . . . 12 . 42 . . . Core Remaining (%) 58 | 100 39 . . . 35 . . . Volleys Fired 265 | 1 66 85 2 . 16 17 40 38 Largest 3 | 2 2 2 2 . 2 3 3 3 Hottest 201 | 70 85 91 91 . 133 201 165 152 Shots Fired 600 | 2 128 170 4 . 32 47 108 109 Gun 451 | 2 128 128 2 . 16 24 81 70 Cannon 138 | . . 42 2 . 16 23 19 36 Launcher 11 | . . . . . . . 8 3 Special . | . . . . . . . . . Kinetic 279 | 1 69 85 2 . 9 6 43 64 Thermal 310 | 1 59 85 2 . 23 41 57 42 Explosive 11 | . . . . . . . 8 3 Electromagnetic . | . . . . . . . . . Robot Hit Streak 14 | 1 13 11 12 . 4 7 9 14 Robot Miss Streak 5 | . 5 5 1 . 2 2 2 4 Penetration Max . | . . . . . . . . . Secondary Targets 2 | . 1 1 . . . . . . Max Gunslinging Chain 1 | . 1 1 . . . . . . Shots Hit Robots 364 | 1 80 114 2 . 21 29 55 62 Core Hits 178 | 1 36 45 1 . 8 13 35 39 Critical Kills 3 | . 1 1 . . . . 1 . Critical Parts Destroyed 1 | . . . . . . . . 1 Critical Strikes 11 | . 5 2 . . . . 2 2 Burn 7 | . 4 1 . . . . 1 1 Meltdown 1 | . . . . . . . 1 . Destroy 3 | . 1 1 . . . . . 1 Melee Attacks 5 | . . 1 . . . . 2 2 Impact . | . . . . . . . . . Slashing 5 | . . 1 . . . . 2 2 Piercing . | . . . . . . . . . Sneak Attacks 1 | . . 1 . . . . . . Combat Hostiles . | . . . . . . . . . Follow-up Attacks . | . . . . . . . . . Damage Inflicted 7646 | 12 1096 1933 41 . 368 558 1709 1929 Guns 4198 | 12 1096 1251 . . 162 291 710 676 Cannons 1827 | . . 638 41 . 206 267 205 470 Explosions 1577 | . . . . . . . 794 783 Melee 44 | . . 44 . . . . . . Ramming . | . . . . . . . . . Kinetic 2349 | . 585 757 . . 85 56 290 576 Thermal 3931 | 12 511 1132 41 . 283 502 625 825 Explosive 1322 | . . . . . . . 794 528 Electromagnetic . | . . . . . . . . . Impact . | . . . . . . . . . Slashing 44 | . . 44 . . . . . . Piercing . | . . . . . . . . . Highest Corruption . | . . . . . . . . . Average Corruption . | . . . . . . . . . Corruption Purged . | . . . . . . . . . Corruption Blocked . | . . . . . . . . . Overload Shots . | . . . . . . . . . Overflow Damage 115 | . . 11 17 . 1 . 5 81 Projectiles 29 | . . 11 17 . 1 . . . Explosions 86 | . . . . . . . 5 81 Melee . | . . . . . . . . . Knockbacks . | . . . . . . . . . Impact . | . . . . . . . . . Kinetic . | . . . . . . . . . Secondary . | . . . . . . . . . Self-Inflicted Damage 116 | . . . . . . . . 116 Shots 2 | . . . . . . . . 2 Rammed . | . . . . . . . . . Targets Rammed . | . . . . . . . . . Kicked . | . . . . . . . . . Crushed . | . . . . . . . . . Highest Temperature 363 | 9 286 24 . . 273 331 363 243 Average Temperature 80 | 6 54 5 . . 95 139 104 89 Received Heat Transfer 1683 | . 303 276 . . 114 135 324 531 Effects 2 | . 1 . . . . . 1 . Interference 2 | . 1 . . . . . 1 . Siege Activations . | . . . . . . . . . Robots Corrupted . | . . . . . . . . . Combat Hostiles . | . . . . . . . . . Parts Fried . | . . . . . . . . . Impact Corruptions . | . . . . . . . . . Robots Melted 3 | . . . . . 1 1 1 . Combat Hostiles 3 | . . . . . 1 1 1 . Parts Melted 14 | . 2 5 . . 1 2 1 3 Heat Transferred 8122 | 37 1702 2368 74 . 555 962 1164 1260 Parts Sabotaged . | . . . . . . . . . Parts Stolen . | . . . . . . . . . Parts Stripped . | . . . . . . . . . Power Chain Reactions . | . . . . . . . . . Alert | -11 -10 -9 -9 -9 -8 -8 -8 -8 ------- Run | Yrd Mat Mat Min Exi Min Mat Gar Mat Peak Influence 841 | 5 222 239 80 . 70 142 841 769 Initial 409 | . 3 8 70 . . 25 70 409 Average 176 | 2 76 85 62 . 36 64 417 466 Maximum Alert Level 3 | . 1 1 . . . . 3 3 Low Security (%) 75 | 100 98 97 100 . 100 100 30 . Level 1 6 | . 1 2 . . . . 18 24 Level 2 12 | . . . . . . . 30 57 Level 3 5 | . . . . . . . 21 18 Level 4 . | . . . . . . . . . Level 5 . | . . . . . . . . . High Security . | . . . . . . . . . Max Security . | . . . . . . . . . Squads Dispatched 11 | . 4 4 . . . . . 3 Investigation 2 | . 2 . . . . . . . Extermination . | . . . . . . . . . Reinforcement 7 | . 2 4 . . . . . 1 Assault 2 | . . . . . . . . 2 Garrison . | . . . . . . . . . Intercept . | . . . . . . . . . Searches Triggered . | . . . . . . . . . Construction Impeded . | . . . . . . . . . Haulers Reinforced . | . . . . . . . . . Active Scanning Responses . | . . . . . . . . . Cargo Convoy Interrupts . | . . . . . . . . . Stealth | -11 -10 -9 -9 -9 -8 -8 -8 -8 --------- Run | Yrd Mat Mat Min Exi Min Mat Gar Mat Distress Signals 10 | . . . 1 . . 5 . 4 Communications Jammed . | . . . . . . . . . Distress Signals . | . . . . . . . . . Times Spotted 135 | . 22 42 2 . 6 15 23 25 Peak Tracking Total 6 | . 5 5 1 . 3 4 5 6 Tactical Retreats 10 | . 1 3 . . 1 3 1 1 Traps | -11 -10 -9 -9 -9 -8 -8 -8 -8 ------- Run | Yrd Mat Mat Min Exi Min Mat Gar Mat Traps Triggered 7 | . 2 . . . . . 5 . Indirectly . | . . . . . . . . . Trap Hack Attempts . | . . . . . . . . . Triggered . | . . . . . . . . . Disarmed . | . . . . . . . . . Reprogrammed . | . . . . . . . . . Reused . | . . . . . . . . . Traps Extracted . | . . . . . . . . . Installed . | . . . . . . . . . Triggered 1 | . . . 1 . . . . . Machines | -11 -10 -9 -9 -9 -8 -8 -8 -8 ---------- Run | Yrd Mat Mat Min Exi Min Mat Gar Mat Machines Disabled 15 | . . 2 . . . 1 3 9 Max in Single Turn 4 | . . 1 . . . 1 1 4 Garrison Relay 3 | . . . . . . . 3 . Machines Repaired . | . . . . . . . . . Machines Dismantled . | . . . . . . . . . Machines Sabotaged . | . . . . . . . . . Overloaded Fab Kills . | . . . . . . . . . Hacking | -11 -10 -9 -9 -9 -8 -8 -8 -8 --------- Run | Yrd Mat Mat Min Exi Min Mat Gar Mat Machines Accessed 19 | . 5 6 . . . 5 2 1 Terminals 16 | . 5 5 . . . 3 2 1 Fabricators . | . . . . . . . . . Repair Stations . | . . . . . . . . . Recycling Units . | . . . . . . . . . Scanalyzers 2 | . . 1 . . . 1 . . Garrison Access 1 | . . . . . . 1 . . Total Hacks 61 | . 20 18 . . . 17 2 4 Successful 39 | . 10 13 . . . 14 . 2 Failed 22 | . 10 5 . . . 3 2 2 Catastrophic 4 | . 2 . . . . 1 1 . Database Lockouts . | . . . . . . . . . Manual 32 | . 13 9 . 1 . 5 . 4 Terminals 49 | . 20 16 . . . 7 2 4 Fabricators . | . . . . . . . . . Repair Stations . | . . . . . . . . . Recycling Units . | . . . . . . . . . Scanalyzers 11 | . . 2 . . . 9 . . Garrison Access 1 | . . . . . . 1 . . Terminal Hacks 17 | . 8 7 . . . 1 . 1 Part Schematic 1 | . 1 . . . . . . . Branch Access Points 2 | . 1 1 . . . . . . Emergency Access Points 1 | . 1 . . . . . . . Terminal Index 1 | . . . . . . . . 1 Unreport Threat 4 | . 1 3 . . . . . . Locate Traps 2 | . 1 . . . . 1 . . Dispatch Records 1 | . . 1 . . . . . . Hauler Manifests 1 | . 1 . . . . . . . Registered Components 2 | . 1 1 . . . . . . Zone Layout 2 | . 1 1 . . . . . . Fabricator Hacks . | . . . . . . . . . Repair Station Hacks . | . . . . . . . . . Recycling Unit Hacks . | . . . . . . . . . Scanalyzer 11 | . . 2 . . . 9 . . Insert Component 5 | . . 1 . . . 4 . . Analyze 6 | . . 1 . . . 5 . . Garrison Access Hacks 1 | . . . . . . 1 . . Unlock Access 1 | . . . . . . 1 . . Unauthorized Hacks 10 | . 2 4 . . . 3 . 1 Terminals 10 | . 2 4 . . . 3 . 1 Botnet 10 | . 2 4 . . . 3 . 1 Fabricators . | . . . . . . . . . Repair Stations . | . . . . . . . . . Recycling Units . | . . . . . . . . . Scanalyzers . | . . . . . . . . . Garrison Access . | . . . . . . . . . Data Cores Recovered . | . . . . . . . . . Used . | . . . . . . . . . Hacking Detections 18 | . 5 6 . . . 4 2 1 Full Trace Events 1 | . 1 . . . . . . . Feedback Events . | . . . . . . . . . Feedback Blocked . | . . . . . . . . . Robot Schematics Acquired . | . . . . . . . . . Robots Built . | . . . . . . . . . Authchips . | . . . . . . . . . Time . | . . . . . . . . . Total Robot Build Rating . | . . . . . . . . . Part Schematics Acquired 6 | . 1 1 . . . 4 . . Parts Built . | . . . . . . . . . Authchips . | . . . . . . . . . Time . | . . . . . . . . . Total Part Build Rating . | . . . . . . . . . Parts Repaired . | . . . . . . . . . Time . | . . . . . . . . . Parts Recycled . | . . . . . . . . . Recycled Matter . | . . . . . . . . . Retrieved Matter . | . . . . . . . . . Retrieved Components . | . . . . . . . . . Parts Scanalyzed 5 | . . 1 . . . 4 . . Part Schematics Acquired 5 | . . 1 . . . 4 . . Parts Damaged 1 | . . . . . . 1 . . Bothacking | -11 -10 -9 -9 -9 -8 -8 -8 -8 ------------ Run | Yrd Mat Mat Min Exi Min Mat Gar Mat Used RIF Installer 1 | . . . . . . . 1 . Robots Hacked . | . . . . . . . . . Non-combat . | . . . . . . . . . Combat . | . . . . . . . . . Robot Hacks Applied . | . . . . . . . . . Relay Couplers Released 12 | . . . . . . . 12 . Machine Destruction 12 | . . . . . . . 12 . Fabnet Peak Effective % . | . . . . . . . . . Robots Rewired . | . . . . . . . . . Allies Hacked . | . . . . . . . . . Hacks Repelled . | . . . . . . . . . Allies | -11 -10 -9 -9 -9 -8 -8 -8 -8 -------- Run | Yrd Mat Mat Min Exi Min Mat Gar Mat Total Allies 4 | . . . 3 . . . 1 . Largest Group 3 | . . . 3 1 1 . 1 . Highest-Rated Group 40 | . . . 40 16 16 . 20 . Highest-Rated Ally 20 | . . . 16 16 16 . 20 . Total Orders . | . . . . . . . . . Ally Attacks 12 | . . . 2 . 1 . 9 . Total Damage 313 | . . . 31 . 17 . 265 . Kills 5 | . . . 1 . . . 4 . Allies Corrupted . | . . . . . . . . . Allies Melted . | . . . . . . . . . Intel | -11 -10 -9 -9 -9 -8 -8 -8 -8 ------- Run | Yrd Mat Mat Min Exi Min Mat Gar Mat Robot Analysis Total . | . . . . . . . . . Derelict Logs Recovered 2 | . . . 2 . . . . . Drone Launches . | . . . . . . . . . Drone Recoveries . | . . . . . . . . . Exploration | -11 -10 -9 -9 -9 -8 -8 -8 -8 ------------- Run | Yrd Mat Mat Min Exi Min Mat Gar Mat Turns Passed 7399 | 92 946 1659 491 365 609 1198 1159 880 Spaces Moved 3505 | 52 458 672 299 225 304 522 610 363 Core 9 | 9 . . . . . . . . Treads 2970 | 43 254 632 299 225 304 522 328 363 Legs 1 | . . 1 . . . . . . Wheels 525 | . 204 39 . . . . 282 . Hover . | . . . . . . . . . Flight . | . . . . . . . . . Fastest Speed 50 | 50 110 125 160 160 160 160 140 160 Average Speed 156 | 140 144 162 160 160 160 160 151 160 Slowest Speed 260 | 160 240 260 160 160 160 160 240 240 Overloaded Moves . | . . . . . . . . . Propulsion Burnouts . | . . . . . . . . . Robots Hopped . | . . . . . . . . . Cave-ins Triggered . | . . . . . . . . . Exploration Rate (%) 50 | 4 68 45 71 61 74 35 62 34 Regions Visited 8 Branch Regions 3 Pre-discovered Areas . | . . . . . . . . . Known Exits Taken 2 | . . 1 . . . 1 . . Unknown Exits Taken 5 | 1 1 . 1 1 1 . . . Scrap Searched 3 | . . . 2 . 1 . . . Spaces Dug . | . . . . . . . . . Terrain Destroyed 118 | . . . . . . . 43 75 Melee . | . . . . . . . . . Projectile 2 | . . . . . . . 1 1 AOE 116 | . . . . . . . 42 74 Terrain Rammed . | . . . . . . . . . Walls Destroyed . | . . . . . . . . . Machines Disabled . | . . . . . . . . . Actions | -11 -10 -9 -9 -9 -8 -8 -8 -8 --------- Run | Yrd Mat Mat Min Exi Min Mat Gar Mat Total 4874 | 66 612 1070 308 229 394 850 760 585 Wait 851 | . 62 260 . . 71 278 36 144 Move 3498 | 51 457 671 298 224 303 522 609 363 Hop . | . . . . . . . . . Pick Up 68 | 7 11 17 1 1 . 13 13 5 Fast Attach 21 | 6 4 1 2 . 1 2 1 4 Attach 28 | 1 4 6 1 . 1 7 4 4 Detach 2 | . . . 1 . . . . 1 Swap 47 | . 4 12 1 3 1 2 14 10 Drop 60 | . 4 17 2 1 1 9 12 14 Fire 265 | 1 66 85 2 . 16 17 40 38 Melee 5 | . . 1 . . . . 2 2 Ram . | . . . . . . . . . Kick . | . . . . . . . . . Crush . | . . . . . . . . . Escape Stasis 29 | . . . . . . . 29 . Rewire . | . . . . . . . . . Trap . | . . . . . . . . . Miscellaneous . | . . . . . . . . . Route ------- -11/Scrapyard -10/Materials (discovered 3 exits: *Mat x2 / Min) -9/Materials (discovered 2 exits: *Mat / *Min) -9/Mines (discovered 3 exits: *Mat x2 / *Exi) -9/Exiles -8/Mines (discovered 2 exits: *Mat x2) -8/Materials (discovered 2 exits: Fac / Gar) -8/Garrison (discovered 3 exits: *Mat x3) -8/Materials History --------- Turn | Location | Event 19 | -11/Scrapyard | Discovered new exit (range 16) 93 | -11/Scrapyard | Entered Materials 303 | -10/Materials | Build established: Mutant 303 | -10/Materials | Discovered new exit (range 14) 590 | -10/Materials | Identified exit to Mines 649 | -10/Materials | Discovered new exit (range 13) 872 | -10/Materials | Core integrity fell below 50% 1039 | -10/Materials | Entered another Materials area 1039 | -9/Materials | Evolved 2 slots: Utility x2 1347 | -9/Materials | Build established: Scavenger-Mutant 1599 | -9/Materials | Discovered new exit (range 10) 2104 | -9/Materials | Identified exit to Mines 2630 | -9/Materials | Destroyed 7 combat bots 2698 | -9/Materials | Entered Mines 2702 | -9/Mines | Learned location of 1 exit from Materials 2710 | -9/Mines | Discovered new exit (range 12) 2766 | -9/Mines | Assisted by bots powering up and referring to "LRC-V3" 2805 | -9/Mines | Assembled infested the area 2810 | -9/Mines | Assisted by a Guerilla fighting off Assembled 2874 | -9/Mines | Learned Materials emergency access door positions 2890 | -9/Mines | Discovered new exit (range 5) 2944 | -9/Mines | Core integrity fell below 50% 3005 | -9/Mines | Received a Rocket Launcher from a helpful Derelict 3181 | -9/Mines | Deemed a non-threat by the Exiles lab entrance 3183 | -9/Mines | Discovered new exit (range 5) 3189 | -9/Mines | Entered Exiles 3189 | -9/Exiles | Accompanied by 1 ally 3228 | -9/Exiles | Met 8R-AWN 3255 | -9/Exiles | Met EX-HEX 3301 | -9/Exiles | Met EX-BIN 3321 | -9/Exiles | Aligned with FarCom system 3322 | -9/Exiles | Given EX-Vault access code 3364 | -9/Exiles | Opened EX-Vault 3376 | -9/Exiles | Found Prototype Energy Cannon 3388 | -9/Exiles | Identified Gui. Plasma Cannon 3411 | -9/Exiles | Warned to stay clear of 0b10 Research branches 3456 | -9/Exiles | Met EX-DEC 3512 | -9/Exiles | Discovered new exit (range 14) 3554 | -9/Exiles | Left Exiles lab with Gui. Plasma Cannon 3554 | -9/Exiles | Entered Mines 3554 | -8/Mines | Accompanied by 1 ally 4020 | -8/Mines | Build established: Scavenger-Skirmisher 4140 | -8/Mines | Discovered new exit (range 15) 4152 | -8/Mines | Discovered new exit (range 5) 4163 | -8/Mines | Entered Materials 4163 | -8/Materials | Evolved 2 slots: Propulsion x1, Weapon x1 4164 | -8/Materials | Identified exit to Factory 5361 | -8/Materials | Identified exit to Garrison 5361 | -8/Materials | Entered Garrison 5498 | -8/Garrison | Triggered checkpoint 5577 | -8/Garrison | Garrison Relay disabled 5696 | -8/Garrison | Triggered checkpoint 5811 | -8/Garrison | Garrison Relay disabled 5812 | -8/Garrison | Build established: Scavenger-Tank 5958 | -8/Garrison | Discovered new exit (range 15) 6018 | -8/Garrison | Rescued a captive Derelict 6051 | -8/Garrison | Triggered checkpoint 6188 | -8/Garrison | Discovered new exit (range 8) 6210 | -8/Garrison | Triggered checkpoint 6216 | -8/Garrison | Discovered new exit (range 15) 6364 | -8/Garrison | Installed Relay Interface Framework 6373 | -8/Garrison | Triggered checkpoint 6423 | -8/Garrison | Garrison Relay disabled 6520 | -8/Garrison | Entered Materials 6830 | -8/Materials | Build established: Scavenger-Skirmisher 7320 | -8/Materials | First assault squad dispatched 7400 | -8/Materials | Self-destructed Last Messages --------------- 07362_ U-05 Engineer lays Concrete. 07365_ U-05 Engineer builds a Wall. 07366_ U-05 Engineer lays Concrete. 07368_ U-05 Engineer builds a Wall. 07368_ Discarded Hacking Suite. 07369_ U-05 Engineer builds a Wall. 07370_ Lgt. Treads destroyed. 07372_ U-05 Engineer lays Concrete. 07374_ M-28 Smith fits Backup Propulsion III on G-47 Trooper. 07374_ U-05 Engineer lays Concrete. 07378_ B-36 Bruiser destroyed. 07378_ U-05 Engineer lays Concrete. 07379_ U-05 Engineer builds a Wall. 07380_ U-05 Engineer lays Concrete. 07380_ M-28 Smith repairs G-50 Soldier. 07381_ U-05 Engineer lays Concrete. 07381_ Minigun destroyed. 07382_ U-05 Engineer lays Concrete. 07399_ Particle Cannon destroyed. Map ----- +----------------------------------------------------+ | ?????????????????????????????????????????????????? | | ?????????????????????????????????????????????????? | | ?????????????????????????????????????????????????? | | ?????????????????????????????????????????????????? | | ?????????????????????????????????????????????????? | | ?????????????????????????????????????????????????? | | ?????????????????????????????????????????????????? | | ?????????????????????????????????????????????????? | | ?????????????????????????????????????????????????? | | ?????????????????????????????????????????????????? | | ?????????????????????????????????????????????????? | | ?????????????????????????????????????????????????? | | ????????????????Y????????????????????????????????? | | ?????????????????????????????????????????????????? | | ????????????????????#????Y???????????????????????? | | ????????????????????# ????????????????????????? | | ????????????????????? "" ??????????????????????? | | ????????????????????? ""S ????????????????????? | | ??????????????????????"" ! ????????????????????? | | ?????????????????????? ????????????????????? | | ??????????????????????? """?????????????????????? | | ??????????????????????? """?????????????????????? | | ???????????????????????? ""??????????????????????? | | ??????????????#######??? ??????????????????????? | | ??????????????# #####/#####??????????????????? | | ??????????????# g @ +??????????????????? | | ??????????????# g g #??????????????????? | | ??????????????# gg #??????????????????? | | ??????????????# m###+#####+#??????????????????? | | ??????????????##a ##?# w ???????????????????????? | | ???????????????# #??# """ ?????????????????????? | | ??????#????????# #??# """ ""???????????????????? | | ??????# ???????# #??# """ """??????????????????? | | ??????+ ??????# %#??# """ """??????????????????? | | ???????? ?????# #??# ???????????????????? | | ????????##+##### #??# ??? ???????????????????? | | ????????# " #??#| ???????????????????????? | | ????????# #???##????????????????????????? | | ????????# ###???????????????????????????? | | ????????# " " "##??????????????????????????? | | ????????# ==[#??????????????????????????? | | ????????# " = ##?????????????????????????? | | ??? ??# " =!= #?????????????????????????? | | ?## ### ##?????????????????????????? | | ?# #! #??????????????????????????? | | ?# #% % #??????????????????????????? | | ?+ #* !% #??????????????????????????? | | ?# # = #??????????????????????????? | | ?# ##### #####??????????????????????????? | | # % ## #### T"#####??????????????????????? | +----------------------------------------------------+ Best States ------------- Heat Dissipation 45 Energy Generation 14 Energy Capacity 280 Matter Stores 300 Matter Capacity 300 Sight Range 18 Robot Scan Range 14 Terrain Scan Density 10 Armor Coverage 450 Evasion (%) 40 Recoil Reduction 3 Offensive Hacking 10 Item Schematics ----------------- Lgt. Armor Plating | -10/Materials | Hacked Hacking Suite | -9/Materials | Scanalyzed Lgt. Nuclear Core | -8/Materials | Scanalyzed Hrd. Medium Armor Plating | -8/Materials | Scanalyzed Minigun | -8/Materials | Scanalyzed Datajack | -8/Materials | Scanalyzed Robot Schematics ------------------ None Fabricated ------------ Nothing Alien Tech Used ----------------- None Achievements -------------- None Challenges ------------ None Game ------ Seed ThermalMetafiberScrapsphere Manual? 0 Play Time 01:12:59 Cumulative 37.8 hours Start 2024.10.20 @ 17:46:24 End 2024.12.22 @ 14:11:50 Sessions 7 Manual Loads 0 Difficulty Rogue Special Mode None Game No. 36 Rogue 36 Adventurer 0 Explorer 0 Win Type - Total 0 Types 0/0/0/0/0/0/0/0/0 Lore% 22 Gallery% 31 Achievement% 29 Wizard Run 0 Options --------- Layout 1 ASCII 0 Keyboard 0 Movement Arrows Keybinds 0 Fullscreen 2 Font 24/Terminus Map View 50x35 Zoom Use 0% Tactical HUD 1 Map Filters NONE Filters NONE Steam 1 RUN: 64e9b336-0cc3-40c6-9f75-526052fae5ae